[Event "Titled Tuesday Blitz May 23 Late 2023"]
[White "MunichMouse"]
[Black "Szyszylo, Rafal"]
[BlackFideId "1109626"]
[WhiteElo "2271"]
[BlackElo "1951"]
[Result "0-1"]
[Round "05"]
[TimeControl "180+2"]
[Date "2023.05.23"]
[WhiteClock "0:00:00"]
[BlackClock "0:00:29"]

1. d4 {[%clk 0:03:00]}  g6 {[%clk 0:03:00]} 2. c4 {[%clk 0:03:01]}  d6 {[%clk 0:02:59]} 3. g3 {[%clk 0:03:01]}  Nf6 {[%clk 0:03:00]} 4. Bg2 {[%clk 0:03:01]}  Bg7 {[%clk 0:03:00]} 5. e4 {[%clk 0:03:02]}  O-O {[%clk 0:03:01]} 6. Ne2 {[%clk 0:03:02]}  e5 {[%clk 0:02:52]} 7. d5 {[%clk 0:03:02]}  a5 {[%clk 0:02:51]} 8. Nbc3 {[%clk 0:03:01]}  Na6 {[%clk 0:02:51]} 9. O-O {[%clk 0:03:02]}  Nd7 {[%clk 0:02:50]} 10. Be3 {[%clk 0:03:00]}  f5 {[%clk 0:02:49]} 11. f3 {[%clk 0:03:00]}  Ndc5 {[%clk 0:02:48]} 12. Qd2 {[%clk 0:02:40]}  Bd7 {[%clk 0:02:17]} 13. Rad1 {[%clk 0:02:23]}  a4 {[%clk 0:02:14]} 14. h3 {[%clk 0:01:51]}  Rf7 {[%clk 0:02:13]} 15. Kh2 {[%clk 0:01:50]}  Qf8 {[%clk 0:02:13]} 16. Nc1 {[%clk 0:01:46]}  f4 {[%clk 0:02:11]} 17. gxf4 {[%clk 0:01:43]}  exf4 {[%clk 0:02:06]} 18. Bd4 {[%clk 0:01:42]}  Re8 {[%clk 0:01:58]} 19. N3e2 {[%clk 0:01:30]}  Be5 {[%clk 0:01:57]} 20. b4 {[%clk 0:01:11]}  axb3 {[%clk 0:01:54]} 21. axb3 {[%clk 0:01:11]}  Qh6 {[%clk 0:01:15]} 22. b4 {[%clk 0:01:09]}  Na4 {[%clk 0:01:15]} 23. Nd3 {[%clk 0:01:08]}  Bxd4 {[%clk 0:00:56]} 24. Nxd4 {[%clk 0:01:07]}  Re5 {[%clk 0:00:57]} 25. Nxe5 {[%clk 0:01:06]}  dxe5 {[%clk 0:00:56]} 26. Ne2 {[%clk 0:01:03]}  Nb6 {[%clk 0:00:52]} 27. Rc1 {[%clk 0:00:54]}  g5 {[%clk 0:00:47]} 28. c5 {[%clk 0:00:30]}  Nc8 {[%clk 0:00:47]} 29. c6 {[%clk 0:00:20]}  bxc6 {[%clk 0:00:45]} 30. dxc6 {[%clk 0:00:19]}  Bxc6 {[%clk 0:00:41]} 31. Qd8+ {[%clk 0:00:19]}  Rf8 {[%clk 0:00:42]} 32. Qd2 {[%clk 0:00:14]}  Bb5 {[%clk 0:00:42]} 33. Rf2 {[%clk 0:00:14]}  Qh4 {[%clk 0:00:34]} 34. Bf1 {[%clk 0:00:00]}  Nd6 {[%clk 0:00:29]} 0-1


[Site "https://www.chess.com"]

[Event "Titled Tuesday Blitz May 23 Late 2023"]
[White "Martinez, Ayelen"]
[Black "KorolDimitriy75"]
[WhiteFideId "118702"]
[WhiteElo "2125"]
[BlackElo "2380"]
[Result "0-1"]
[Round "05"]
[TimeControl "180+2"]
[Date "2023.05.23"]
[WhiteClock "0:00:18"]
[BlackClock "0:00:17"]

1. e4 {[%clk 0:03:00]}  c5 {[%clk 0:02:58]} 2. Nf3 {[%clk 0:03:00]}  d6 {[%clk 0:02:57]} 3. d4 {[%clk 0:02:59]}  cxd4 {[%clk 0:02:58]} 4. Nxd4 {[%clk 0:03:00]}  Nf6 {[%clk 0:02:59]} 5. Nc3 {[%clk 0:02:59]}  g6 {[%clk 0:03:00]} 6. Bg5 {[%clk 0:02:58]}  Bg7 {[%clk 0:03:00]} 7. Qd2 {[%clk 0:02:57]}  O-O {[%clk 0:03:01]} 8. Bh6 {[%clk 0:02:56]}  Nc6 {[%clk 0:02:57]} 9. Nxc6 {[%clk 0:02:48]}  bxc6 {[%clk 0:02:56]} 10. O-O-O {[%clk 0:02:45]}  Qa5 {[%clk 0:02:38]} 11. h4 {[%clk 0:02:32]}  Rb8 {[%clk 0:01:34]} 12. Bc4 {[%clk 0:02:12]}  Nxe4 {[%clk 0:01:32]} 13. Nxe4 {[%clk 0:01:41]}  Bxb2+ {[%clk 0:01:30]} 14. Kb1 {[%clk 0:01:41]}  Bc3+ {[%clk 0:01:25]} 15. Bb3 {[%clk 0:01:41]}  Bxd2 {[%clk 0:01:14]} 16. Bxd2 {[%clk 0:01:42]}  Qf5 {[%clk 0:00:46]} 17. f3 {[%clk 0:01:34]}  a5 {[%clk 0:00:42]} 18. g4 {[%clk 0:01:24]}  Qxf3 {[%clk 0:00:41]} 19. Ng5 {[%clk 0:01:23]}  Qxg4 {[%clk 0:00:36]} 20. Bxa5 {[%clk 0:01:21]}  Bf5 {[%clk 0:00:29]} 21. Rdg1 {[%clk 0:01:07]}  Qe2 {[%clk 0:00:27]} 22. Rc1 {[%clk 0:01:02]}  c5 {[%clk 0:00:20]} 23. Rhe1 {[%clk 0:01:00]}  Qb5 {[%clk 0:00:20]} 24. Bc7 {[%clk 0:00:43]}  c4 {[%clk 0:00:19]} 25. Bxb8 {[%clk 0:00:40]}  Rxb8 {[%clk 0:00:18]} 26. Kb2 {[%clk 0:00:37]}  cxb3 {[%clk 0:00:18]} 27. axb3 {[%clk 0:00:38]}  e6 {[%clk 0:00:18]} 28. Ra1 {[%clk 0:00:36]}  d5 {[%clk 0:00:17]} 29. Ra7 {[%clk 0:00:35]}  Rb7 {[%clk 0:00:17]} 30. Ra8+ {[%clk 0:00:34]}  Rb8 {[%clk 0:00:17]} 31. Ra7 {[%clk 0:00:34]}  Rf8 {[%clk 0:00:17]} 32. Rea1 {[%clk 0:00:30]}  Qc5 {[%clk 0:00:17]} 33. c3 {[%clk 0:00:28]}  Qf2+ {[%clk 0:00:17]} 34. Ka3 {[%clk 0:00:21]}  Qxa7+ {[%clk 0:00:17]} 35. Kb2 {[%clk 0:00:18]}  Qf2+ {[%clk 0:00:17]} 0-1


[Site "https://www.chess.com"]

[Event "Titled Tuesday Blitz May 23 Late 2023"]
[White "Davidson, Kevin"]
[Black "De Souza, Cristiano Gomes"]
[WhiteFideId "2056810"]
[BlackFideId "2151758"]
[WhiteElo "2151"]
[BlackElo "2068"]
[Result "1-0"]
[Round "05"]
[TimeControl "180+2"]
[Date "2023.05.23"]
[WhiteClock "0:00:20"]
[BlackClock "0:01:03"]

1. e4 {[%clk 0:03:00]}  c5 {[%clk 0:02:59]} 2. Nf3 {[%clk 0:02:58]}  d6 {[%clk 0:02:59]} 3. d4 {[%clk 0:02:55]}  cxd4 {[%clk 0:02:59]} 4. Nxd4 {[%clk 0:02:56]}  Nf6 {[%clk 0:02:53]} 5. Nc3 {[%clk 0:02:56]}  g6 {[%clk 0:02:50]} 6. Be3 {[%clk 0:02:55]}  Bg7 {[%clk 0:02:49]} 7. f3 {[%clk 0:02:55]}  O-O {[%clk 0:02:49]} 8. Qd2 {[%clk 0:02:55]}  Nc6 {[%clk 0:02:49]} 9. O-O-O {[%clk 0:02:55]}  d5 {[%clk 0:02:49]} 10. Qe1 {[%clk 0:02:55]}  Nxd4 {[%clk 0:02:44]} 11. Bxd4 {[%clk 0:02:54]}  e6 {[%clk 0:02:34]} 12. h4 {[%clk 0:02:36]}  b6 {[%clk 0:02:29]} 13. g4 {[%clk 0:02:30]}  Bb7 {[%clk 0:02:24]} 14. h5 {[%clk 0:02:29]}  dxe4 {[%clk 0:02:16]} 15. fxe4 {[%clk 0:02:13]}  Nxg4 {[%clk 0:02:08]} 16. Bxg7 {[%clk 0:01:59]}  Qg5+ {[%clk 0:02:07]} 17. Kb1 {[%clk 0:01:50]}  Kxg7 {[%clk 0:02:07]} 18. Rg1 {[%clk 0:01:26]}  Qxh5 {[%clk 0:01:59]} 19. Be2 {[%clk 0:01:23]}  f5 {[%clk 0:01:57]} 20. Rd7+ {[%clk 0:01:13]}  Rf7 {[%clk 0:01:57]} 21. Rxf7+ {[%clk 0:01:12]}  Kxf7 {[%clk 0:01:53]} 22. Qd1 {[%clk 0:00:24]}  Qh4 {[%clk 0:01:39]} 23. Bxg4 {[%clk 0:00:20]}  fxg4 {[%clk 0:01:37]} 24. Qd7+ {[%clk 0:00:20]}  Qe7 {[%clk 0:01:03]} 25. Rf1+ {[%clk 0:00:20]} 1-0


[Site "https://www.chess.com"]

[Event "Titled Tuesday Blitz May 23 Late 2023"]
[White "Chakravarthi Reddy, M"]
[Black "Alimpic, Aleksa"]
[WhiteFideId "25009532"]
[BlackFideId "974323"]
[WhiteElo "2201"]
[BlackElo "2298"]
[Result "1-0"]
[Round "05"]
[TimeControl "180+2"]
[Date "2023.05.23"]
[WhiteClock "0:00:48"]
[BlackClock "0:00:02"]

1. e4 {[%clk 0:02:59]}  g6 {[%clk 0:03:00]} 2. d4 {[%clk 0:02:59]}  Bg7 {[%clk 0:03:00]} 3. Nc3 {[%clk 0:02:59]}  c6 {[%clk 0:03:01]} 4. f4 {[%clk 0:02:59]}  d5 {[%clk 0:03:01]} 5. e5 {[%clk 0:02:58]}  h5 {[%clk 0:03:01]} 6. Bd3 {[%clk 0:02:54]}  Nh6 {[%clk 0:03:01]} 7. Nf3 {[%clk 0:02:47]}  Bf5 {[%clk 0:02:59]} 8. Be3 {[%clk 0:02:39]}  e6 {[%clk 0:02:50]} 9. h3 {[%clk 0:02:36]}  h4 {[%clk 0:02:42]} 10. Bf2 {[%clk 0:02:24]}  Bxd3 {[%clk 0:02:41]} 11. Bxh4 {[%clk 0:02:21]}  Qb6 {[%clk 0:02:40]} 12. Qxd3 {[%clk 0:02:19]}  Nd7 {[%clk 0:02:19]} 13. g4 {[%clk 0:02:12]}  Bf8 {[%clk 0:02:04]} 14. O-O-O {[%clk 0:01:59]}  c5 {[%clk 0:01:56]} 15. Rhe1 {[%clk 0:01:43]}  Rc8 {[%clk 0:01:54]} 16. Nxd5 {[%clk 0:01:38]}  exd5 {[%clk 0:01:51]} 17. e6 {[%clk 0:01:38]}  Nb8 {[%clk 0:01:21]} 18. exf7+ {[%clk 0:01:29]}  Kxf7 {[%clk 0:01:22]} 19. Ng5+ {[%clk 0:01:20]}  Kg8 {[%clk 0:00:32]} 20. Re6 {[%clk 0:01:18]}  Qc7 {[%clk 0:00:33]} 21. Rxg6+ {[%clk 0:01:16]}  Bg7 {[%clk 0:00:33]} 22. Ne6 {[%clk 0:01:16]}  Qf7 {[%clk 0:00:28]} 23. Rxg7+ {[%clk 0:01:07]}  Qxg7 {[%clk 0:00:28]} 24. Nxg7 {[%clk 0:01:07]}  Kxg7 {[%clk 0:00:29]} 25. dxc5 {[%clk 0:00:59]}  Nf7 {[%clk 0:00:24]} 26. Qd4+ {[%clk 0:00:55]}  Kg8 {[%clk 0:00:23]} 27. Bf6 {[%clk 0:00:51]}  Rxh3 {[%clk 0:00:24]} 28. g5 {[%clk 0:00:51]}  Nc6 {[%clk 0:00:24]} 29. Qxd5 {[%clk 0:00:50]}  Kf8 {[%clk 0:00:15]} 30. Qf5 {[%clk 0:00:49]}  Re8 {[%clk 0:00:02]} 31. Qxh3 {[%clk 0:00:48]} 1-0


[Site "https://www.chess.com"]

[Event "Titled Tuesday Blitz May 23 Late 2023"]
[White "Mickiewicz, Piotr"]
[Black "Thiel, Thomas"]
[WhiteFideId "1114891"]
[BlackFideId "4615964"]
[WhiteElo "2246"]
[BlackElo "2234"]
[Result "1-0"]
[Round "05"]
[TimeControl "180+2"]
[Date "2023.05.23"]
[WhiteClock "0:01:13"]
[BlackClock "0:01:00"]

1. g3 {[%clk 0:03:00]}  d5 {[%clk 0:02:56]} 2. Bg2 {[%clk 0:03:01]}  c6 {[%clk 0:02:54]} 3. b3 {[%clk 0:03:00]}  Nf6 {[%clk 0:02:53]} 4. Bb2 {[%clk 0:03:01]}  g6 {[%clk 0:02:52]} 5. Nf3 {[%clk 0:03:00]}  Bg7 {[%clk 0:02:51]} 6. c4 {[%clk 0:03:01]}  O-O {[%clk 0:02:48]} 7. O-O {[%clk 0:03:00]}  Re8 {[%clk 0:02:41]} 8. d3 {[%clk 0:02:59]}  Nbd7 {[%clk 0:02:38]} 9. cxd5 {[%clk 0:02:58]}  cxd5 {[%clk 0:02:37]} 10. Nbd2 {[%clk 0:02:40]}  e5 {[%clk 0:02:32]} 11. e3 {[%clk 0:02:38]}  b6 {[%clk 0:02:23]} 12. b4 {[%clk 0:02:31]}  Ba6 {[%clk 0:02:20]} 13. Qb3 {[%clk 0:02:31]}  Qe7 {[%clk 0:02:04]} 14. Rfc1 {[%clk 0:02:29]}  Rac8 {[%clk 0:01:58]} 15. a4 {[%clk 0:02:25]}  Bb7 {[%clk 0:01:55]} 16. Bh3 {[%clk 0:02:20]}  Rxc1+ {[%clk 0:01:48]} 17. Rxc1 {[%clk 0:02:19]}  Rc8 {[%clk 0:01:49]} 18. Rxc8+ {[%clk 0:02:16]}  Bxc8 {[%clk 0:01:48]} 19. Bxd7 {[%clk 0:02:10]}  Nxd7 {[%clk 0:01:45]} 20. Qxd5 {[%clk 0:02:08]}  Qxb4 {[%clk 0:01:36]} 21. Qa8 {[%clk 0:01:59]}  Qxb2 {[%clk 0:01:34]} 22. Qxc8+ {[%clk 0:01:58]}  Nf8 {[%clk 0:01:32]} 23. Kg2 {[%clk 0:01:50]}  b5 {[%clk 0:01:31]} 24. Qb7 {[%clk 0:01:46]}  b4 {[%clk 0:01:28]} 25. Nc4 {[%clk 0:01:30]}  Qc3 {[%clk 0:01:25]} 26. Ng5 {[%clk 0:01:22]}  f6 {[%clk 0:01:00]} 27. Qd5+ {[%clk 0:01:13]} 1-0


[Site "https://www.chess.com"]

[Event "Titled Tuesday Blitz May 23 Late 2023"]
[White "Figorito, Nick"]
[Black "Clawitter, Craig"]
[WhiteFideId "30923689"]
[BlackFideId "2023105"]
[WhiteElo "2358"]
[BlackElo "2230"]
[Result "1-0"]
[Round "05"]
[TimeControl "180+2"]
[Date "2023.05.23"]
[WhiteClock "0:01:15"]
[BlackClock "0:00:00"]

1. Nf3 {[%clk 0:03:00]}  Nf6 {[%clk 0:02:53]} 2. g3 {[%clk 0:03:01]}  g6 {[%clk 0:02:52]} 3. Bg2 {[%clk 0:03:01]}  Bg7 {[%clk 0:02:53]} 4. O-O {[%clk 0:03:02]}  O-O {[%clk 0:02:53]} 5. c4 {[%clk 0:03:03]}  c5 {[%clk 0:02:53]} 6. d4 {[%clk 0:03:03]}  Nc6 {[%clk 0:02:48]} 7. dxc5 {[%clk 0:02:59]}  Qa5 {[%clk 0:02:42]} 8. Nc3 {[%clk 0:02:54]}  Qxc5 {[%clk 0:02:38]} 9. b3 {[%clk 0:02:54]}  Qh5 {[%clk 0:02:31]} 10. Bb2 {[%clk 0:02:51]}  d6 {[%clk 0:02:27]} 11. Qd2 {[%clk 0:02:51]}  Bh3 {[%clk 0:01:49]} 12. Nd5 {[%clk 0:02:42]}  Ne4 {[%clk 0:01:28]} 13. Qc2 {[%clk 0:02:28]}  Bxg2 {[%clk 0:01:26]} 14. Kxg2 {[%clk 0:02:18]}  Bxb2 {[%clk 0:01:03]} 15. Qxb2 {[%clk 0:02:19]}  e6 {[%clk 0:01:03]} 16. Nf6+ {[%clk 0:02:08]}  Nxf6 {[%clk 0:01:01]} 17. Qxf6 {[%clk 0:02:08]}  Ne5 {[%clk 0:00:58]} 18. Rad1 {[%clk 0:01:45]}  Nxf3 {[%clk 0:00:46]} 19. Qxf3 {[%clk 0:01:45]}  Qxf3+ {[%clk 0:00:41]} 20. Kxf3 {[%clk 0:01:46]}  Rfd8 {[%clk 0:00:37]} 21. e4 {[%clk 0:01:45]}  Rac8 {[%clk 0:00:30]} 22. Rd2 {[%clk 0:01:43]}  d5 {[%clk 0:00:30]} 23. exd5 {[%clk 0:01:40]}  exd5 {[%clk 0:00:30]} 24. Rfd1 {[%clk 0:01:40]}  Rc5 {[%clk 0:00:22]} 25. Rxd5 {[%clk 0:01:38]}  Rcxd5 {[%clk 0:00:18]} 26. Rxd5 {[%clk 0:01:37]}  Rc8 {[%clk 0:00:05]} 27. Rd7 {[%clk 0:01:37]}  b5 {[%clk 0:00:06]} 28. cxb5 {[%clk 0:01:35]}  Rc5 {[%clk 0:00:02]} 29. a4 {[%clk 0:01:28]}  Rc3+ {[%clk 0:00:02]} 30. Kg2 {[%clk 0:01:28]}  Rxb3 {[%clk 0:00:03]} 31. Rxa7 {[%clk 0:01:28]}  Kg7 {[%clk 0:00:03]} 32. Ra6 {[%clk 0:01:27]}  h5 {[%clk 0:00:01]} 33. h4 {[%clk 0:01:25]}  f6 {[%clk 0:00:01]} 34. b6 {[%clk 0:01:25]}  g5 {[%clk 0:00:01]} 35. hxg5 {[%clk 0:01:23]}  fxg5 {[%clk 0:00:02]} 36. Ra5 {[%clk 0:01:16]}  Kg6 {[%clk 0:00:02]} 37. Rb5 {[%clk 0:01:16]}  Ra3 {[%clk 0:00:00]} 38. b7 {[%clk 0:01:15]} 1-0


[Site "https://www.chess.com"]

[Event "Titled Tuesday Blitz May 23 Late 2023"]
[White "Almedina Ortiz, Edgardo J."]
[Black "Ammar, Sedrani"]
[WhiteFideId "3100197"]
[BlackFideId "9312331"]
[WhiteElo "2217"]
[BlackElo "2115"]
[Result "0-1"]
[Round "05"]
[TimeControl "180+2"]
[Date "2023.05.23"]
[WhiteClock "0:00:00"]
[BlackClock "0:00:11"]

1. d4 {[%clk 0:03:00]}  e6 {[%clk 0:02:59]} 2. c4 {[%clk 0:02:58]}  d5 {[%clk 0:02:59]} 3. Nc3 {[%clk 0:02:58]}  Nf6 {[%clk 0:02:58]} 4. cxd5 {[%clk 0:02:57]}  exd5 {[%clk 0:02:59]} 5. Bg5 {[%clk 0:02:57]}  Be7 {[%clk 0:02:59]} 6. Qc2 {[%clk 0:02:57]}  c6 {[%clk 0:02:57]} 7. e3 {[%clk 0:02:57]}  O-O {[%clk 0:02:53]} 8. Bd3 {[%clk 0:02:57]}  Nbd7 {[%clk 0:02:53]} 9. Nf3 {[%clk 0:02:58]}  Re8 {[%clk 0:02:53]} 10. O-O {[%clk 0:02:58]}  Nf8 {[%clk 0:02:52]} 11. h3 {[%clk 0:02:58]}  Ne4 {[%clk 0:02:30]} 12. Bf4 {[%clk 0:02:24]}  Ng6 {[%clk 0:02:25]} 13. Nxe4 {[%clk 0:02:06]}  Nxf4 {[%clk 0:02:19]} 14. exf4 {[%clk 0:02:05]}  dxe4 {[%clk 0:02:18]} 15. Bxe4 {[%clk 0:02:05]}  h6 {[%clk 0:02:13]} 16. Rfd1 {[%clk 0:01:59]}  Bd6 {[%clk 0:01:42]} 17. Ne5 {[%clk 0:01:38]}  Qh4 {[%clk 0:01:40]} 18. Bh7+ {[%clk 0:00:49]}  Kf8 {[%clk 0:01:38]} 19. Qd2 {[%clk 0:00:43]}  Re6 {[%clk 0:01:17]} 20. Bf5 {[%clk 0:00:38]}  Re7 {[%clk 0:01:02]} 21. Bxc8 {[%clk 0:00:37]}  Rxc8 {[%clk 0:01:03]} 22. Rac1 {[%clk 0:00:32]}  Kg8 {[%clk 0:00:56]} 23. Qe3 {[%clk 0:00:26]}  Re6 {[%clk 0:00:45]} 24. f5 {[%clk 0:00:16]}  Rf6 {[%clk 0:00:41]} 25. g4 {[%clk 0:00:13]}  Re8 {[%clk 0:00:23]} 26. Qf3 {[%clk 0:00:12]}  Bxe5 {[%clk 0:00:19]} 27. dxe5 {[%clk 0:00:12]}  Rxe5 {[%clk 0:00:20]} 28. Rd8+ {[%clk 0:00:11]}  Kh7 {[%clk 0:00:20]} 29. Rcd1 {[%clk 0:00:11]}  g6 {[%clk 0:00:14]} 30. R8d7 {[%clk 0:00:07]}  gxf5 {[%clk 0:00:14]} 31. Rxb7 {[%clk 0:00:04]}  fxg4 {[%clk 0:00:12]} 32. Qd3+ {[%clk 0:00:03]}  Ref5 {[%clk 0:00:11]} 33. hxg4 {[%clk 0:00:02]}  Qxg4+ {[%clk 0:00:12]} 34. Kf1 {[%clk 0:00:00]}  Qg6 {[%clk 0:00:11]} 0-1


[Site "https://www.chess.com"]

[Event "Titled Tuesday Blitz May 23 Late 2023"]
[White "Kovacevic, Radmila"]
[Black "Chabris, Christopher"]
[WhiteFideId "933171"]
[BlackFideId "2005263"]
[WhiteElo "2194"]
[BlackElo "2356"]
[Result "0-1"]
[Round "05"]
[TimeControl "180+2"]
[Date "2023.05.23"]
[WhiteClock "0:00:14"]
[BlackClock "0:00:32"]

1. e4 {[%clk 0:03:00]}  e5 {[%clk 0:02:55]} 2. d4 {[%clk 0:03:00]}  exd4 {[%clk 0:02:55]} 3. c3 {[%clk 0:03:00]}  d5 {[%clk 0:02:54]} 4. exd5 {[%clk 0:03:01]}  Qxd5 {[%clk 0:02:54]} 5. Nf3 {[%clk 0:02:58]}  Bg4 {[%clk 0:02:53]} 6. Be2 {[%clk 0:02:56]}  Nc6 {[%clk 0:02:48]} 7. O-O {[%clk 0:02:51]}  O-O-O {[%clk 0:02:37]} 8. Nxd4 {[%clk 0:02:45]}  Bxe2 {[%clk 0:02:16]} 9. Qxe2 {[%clk 0:02:45]}  Nxd4 {[%clk 0:02:07]} 10. cxd4 {[%clk 0:02:46]}  Qxd4 {[%clk 0:02:07]} 11. Be3 {[%clk 0:02:40]}  Qd3 {[%clk 0:02:02]} 12. Qg4+ {[%clk 0:02:39]}  Qd7 {[%clk 0:01:53]} 13. Qf3 {[%clk 0:02:31]}  Nf6 {[%clk 0:01:45]} 14. Nc3 {[%clk 0:02:27]}  Qg4 {[%clk 0:01:29]} 15. Rad1 {[%clk 0:02:15]}  Rxd1 {[%clk 0:01:19]} 16. Rxd1 {[%clk 0:02:12]}  Qxf3 {[%clk 0:01:19]} 17. gxf3 {[%clk 0:02:13]}  a6 {[%clk 0:01:13]} 18. Bg5 {[%clk 0:01:54]}  Be7 {[%clk 0:01:05]} 19. Re1 {[%clk 0:01:44]}  Bd8 {[%clk 0:00:56]} 20. Re5 {[%clk 0:01:24]}  Nd7 {[%clk 0:00:53]} 21. Bxd8 {[%clk 0:01:15]}  Kxd8 {[%clk 0:00:53]} 22. Rg5 {[%clk 0:01:12]}  g6 {[%clk 0:00:52]} 23. Ne4 {[%clk 0:01:10]}  f5 {[%clk 0:00:51]} 24. Nc3 {[%clk 0:01:04]}  c6 {[%clk 0:00:50]} 25. h4 {[%clk 0:01:04]}  Ke7 {[%clk 0:00:50]} 26. h5 {[%clk 0:01:03]}  Kf6 {[%clk 0:00:50]} 27. f4 {[%clk 0:01:03]}  Nb6 {[%clk 0:00:45]} 28. Kg2 {[%clk 0:00:53]}  Rd8 {[%clk 0:00:40]} 29. Kf3 {[%clk 0:00:31]}  Rd2 {[%clk 0:00:36]} 30. hxg6 {[%clk 0:00:30]}  hxg6 {[%clk 0:00:36]} 31. Rg1 {[%clk 0:00:29]}  Rxb2 {[%clk 0:00:35]} 32. Rb1 {[%clk 0:00:27]}  Rxb1 {[%clk 0:00:35]} 33. Nxb1 {[%clk 0:00:28]}  Nd5 {[%clk 0:00:35]} 34. a3 {[%clk 0:00:26]}  c5 {[%clk 0:00:34]} 35. Nd2 {[%clk 0:00:25]}  b5 {[%clk 0:00:34]} 36. Nb3 {[%clk 0:00:25]}  c4 {[%clk 0:00:33]} 37. Nc5 {[%clk 0:00:18]}  a5 {[%clk 0:00:33]} 38. Nb7 {[%clk 0:00:14]}  b4 {[%clk 0:00:33]} 39. Nxa5 {[%clk 0:00:13]}  bxa3 {[%clk 0:00:33]} 40. Nxc4 {[%clk 0:00:13]}  a2 {[%clk 0:00:33]} 41. Ne3 {[%clk 0:00:13]}  Nxe3 {[%clk 0:00:33]} 42. fxe3 {[%clk 0:00:14]}  a1=Q {[%clk 0:00:32]} 0-1


[Site "https://www.chess.com"]

[Event "Titled Tuesday Blitz May 23 Late 2023"]
[White "Sariego Figueredo, Wilfredo"]
[Black "Sarkar, Justin"]
[WhiteFideId "3500080"]
[BlackFideId "2010011"]
[WhiteElo "2309"]
[BlackElo "2168"]
[Result "0-1"]
[Round "05"]
[TimeControl "180+2"]
[Date "2023.05.23"]
[WhiteClock "0:00:00"]
[BlackClock "0:01:00"]

1. d4 {[%clk 0:02:59]}  Nf6 {[%clk 0:02:46]} 2. Bf4 {[%clk 0:02:59]}  Nd5 {[%clk 0:02:43]} 3. Bg3 {[%clk 0:02:58]}  d6 {[%clk 0:02:29]} 4. e4 {[%clk 0:02:54]}  Nf6 {[%clk 0:02:27]} 5. Nc3 {[%clk 0:02:48]}  g6 {[%clk 0:02:23]} 6. Bc4 {[%clk 0:02:34]}  Bg7 {[%clk 0:02:19]} 7. e5 {[%clk 0:02:28]}  Nh5 {[%clk 0:02:15]} 8. Nf3 {[%clk 0:01:58]}  Nxg3 {[%clk 0:02:13]} 9. hxg3 {[%clk 0:01:59]}  Nc6 {[%clk 0:02:07]} 10. Ng5 {[%clk 0:01:44]}  e6 {[%clk 0:02:02]} 11. Nf3 {[%clk 0:01:22]}  dxe5 {[%clk 0:01:58]} 12. dxe5 {[%clk 0:01:11]}  Qxd1+ {[%clk 0:01:53]} 13. Rxd1 {[%clk 0:01:12]}  a6 {[%clk 0:01:53]} 14. Bb3 {[%clk 0:00:46]}  Nxe5 {[%clk 0:01:45]} 15. Nxe5 {[%clk 0:00:33]}  Bxe5 {[%clk 0:01:44]} 16. O-O {[%clk 0:00:29]}  Bxc3 {[%clk 0:01:38]} 17. bxc3 {[%clk 0:00:23]}  Bd7 {[%clk 0:01:38]} 18. f4 {[%clk 0:00:18]}  h5 {[%clk 0:01:30]} 19. Kf2 {[%clk 0:00:13]}  Ke7 {[%clk 0:01:28]} 20. Rfe1 {[%clk 0:00:07]}  Bc6 {[%clk 0:01:24]} 21. Rd4 {[%clk 0:00:03]}  a5 {[%clk 0:01:19]} 22. a4 {[%clk 0:00:01]}  Rhd8 {[%clk 0:01:16]} 23. Red1 {[%clk 0:00:01]}  Be4 {[%clk 0:01:07]} 24. Rxe4 {[%clk 0:00:01]}  Rxd1 {[%clk 0:01:06]} 25. Re2 {[%clk 0:00:02]}  Rad8 {[%clk 0:01:05]} 26. Bc4 {[%clk 0:00:01]}  R8d2 {[%clk 0:01:02]} 27. Bd3 {[%clk 0:00:02]}  Rxe2+ {[%clk 0:01:01]} 28. Kxe2 {[%clk 0:00:03]}  Ra1 {[%clk 0:01:00]} 29. Bb5 {[%clk 0:00:00]}  c6 {[%clk 0:01:00]} 0-1


[Site "https://www.chess.com"]

[Event "Titled Tuesday Blitz May 23 Late 2023"]
[White "Einarsson, Halldor Gretar"]
[Black "Vargas, Mauricio"]
[WhiteFideId "2300150"]
[BlackFideId "4404572"]
[WhiteElo "2110"]
[BlackElo "1986"]
[Result "1-0"]
[Round "05"]
[TimeControl "180+2"]
[Date "2023.05.23"]
[WhiteClock "0:00:50"]
[BlackClock "0:00:00"]

1. d4 {[%clk 0:03:00]}  d5 {[%clk 0:02:37]} 2. Nf3 {[%clk 0:02:59]}  c6 {[%clk 0:02:30]} 3. c4 {[%clk 0:02:58]}  e6 {[%clk 0:02:29]} 4. g3 {[%clk 0:02:47]}  Bd6 {[%clk 0:02:20]} 5. Bg2 {[%clk 0:02:43]}  f5 {[%clk 0:02:14]} 6. O-O {[%clk 0:02:39]}  Nf6 {[%clk 0:02:13]} 7. Nc3 {[%clk 0:02:33]}  O-O {[%clk 0:02:13]} 8. Qc2 {[%clk 0:02:31]}  Ne4 {[%clk 0:02:11]} 9. Rb1 {[%clk 0:02:24]}  Bd7 {[%clk 0:02:05]} 10. c5 {[%clk 0:02:13]}  Bc7 {[%clk 0:02:04]} 11. b4 {[%clk 0:02:10]}  a6 {[%clk 0:02:00]} 12. Bf4 {[%clk 0:02:07]}  Bxf4 {[%clk 0:01:52]} 13. gxf4 {[%clk 0:02:06]}  Rf6 {[%clk 0:01:43]} 14. e3 {[%clk 0:01:58]}  Rg6 {[%clk 0:01:41]} 15. Kh1 {[%clk 0:01:52]}  Qe8 {[%clk 0:01:18]} 16. Ne2 {[%clk 0:01:48]}  Rh6 {[%clk 0:01:14]} 17. Ng3 {[%clk 0:01:37]}  Nxg3+ {[%clk 0:01:13]} 18. fxg3 {[%clk 0:01:35]}  Qg6 {[%clk 0:01:12]} 19. Kg1 {[%clk 0:01:33]}  Be8 {[%clk 0:01:02]} 20. Ne5 {[%clk 0:01:10]}  Qh5 {[%clk 0:00:58]} 21. h4 {[%clk 0:01:06]}  Nd7 {[%clk 0:00:53]} 22. Bf3 {[%clk 0:01:01]}  Nxe5 {[%clk 0:00:15]} 23. Bxh5 {[%clk 0:00:59]}  Nc4 {[%clk 0:00:13]} 24. Bxe8 {[%clk 0:00:58]}  Rxe8 {[%clk 0:00:11]} 25. Qd3 {[%clk 0:00:53]}  Rf8 {[%clk 0:00:09]} 26. a4 {[%clk 0:00:52]}  Rff6 {[%clk 0:00:00]} 27. b5 {[%clk 0:00:50]} 1-0


[Site "https://www.chess.com"]